Cogmind - Beta 16 @@@ ROGUE MODE // 2026.01.05 @ 01:25:57 Player: kim.jet.wav Result: Destroyed by S-10 Pest with Light Assault Rifle Performance ------------- Evolutions (0) 0 Regions Visited (1) 200 Robots Destroyed (12) 60 Value Destroyed (343) 343 Prototype IDs (0) 0 Alien Tech Used (0) 0 Bonus (0) 0 TOTAL SCORE: 603 Bonus ------- None Cogmind --------- Core Integrity 0/250 Matter 300/300 Energy 100/100 System Corruption 0% Temperature Warm (162) Movement Core (200) Ox3 Location -10/Materials Parts ------- > --- POWER (1) -------- (None) > --- PROPULSION (2) --- (None) > --- UTILITY (2) ------ Medium Storage Unit > --- WEAPON (2) ------- Small Laser > --- INVENTORY (10) --- Ion Engine Light Ion Engine Aluminum Leg Aluminum Leg Aluminum Leg Seismic Detector Peak State ------------ > --- POWER ------------ Ion Engine > --- PROPULSION ------- Aluminum Leg Aluminum Leg > --- UTILITY ---------- Small Storage Unit Seismic Detector > --- WEAPON ----------- EM Pulse Gun Medium Laser > --- INVENTORY -------- Light Ion Engine [Rating: 7] Favorites ----------- Power Ion Engine Engine Ion Engine Propulsion Aluminum Leg Leg Aluminum Leg Utility Medium Storage Unit Device Seismic Detector Storage Medium Storage Unit Weapon EM Pulse Gun Energy Gun EM Pulse Gun Build | -11 -10 ------- Run | Yrd Mat Slots Evolved . | . . Power . | . . Propulsion . | . . Utility . | . . Weapon . | . . Parts Attached 14 | 7 7 Power 1 | 1 . Engine 1 | 1 . Core . | . . Reactor . | . . Propulsion 5 | 2 3 Treads . | . . Leg 5 | 2 3 Wheel . | . . Hover . | . . Flight . | . . Utility 4 | 2 2 Device 2 | 1 1 Storage 2 | 1 1 Processor . | . . Hackware . | . . Protection . | . . Artifact . | . . Weapon 4 | 2 2 Energy Gun 4 | 2 2 Energy Cannon . | . . Ballistic Gun . | . . Ballistic Cannon . | . . Launcher . | . . Special Weapon . | . . Impact Weapon . | . . Slashing Weapon . | . . Piercing Weapon . | . . Special Melee Weapon . | . . Unidentified Prototypes . | . . Parts Lost 8 | . 8 Power 1 | . 1 Propulsion 3 | . 3 Utility 1 | . 1 Weapon 3 | . 3 Highest Loss Streak 8 | . 8 To Critical Strikes . | . . Average Backups 2 | . 3 Power 1 | . 1 Propulsion . | . 1 Utility . | . . Weapon . | . . Tool/Special . | . . Unused Backups 3 | . 3 Power 2 | . 2 Propulsion 1 | . 1 Utility . | . . Weapon . | . . Tool/Special . | . . Average Slot Usage (%) 97 | . 97 Engine 13 | . 13 Leg 27 | . 27 Device 13 | . 13 Storage 14 | . 14 Energy Gun 27 | . 27 Peak Build Rating 7 | 7 7 Average Rating 6 | 5 6 On Entrance 3 | . 7 Avg Prop Armor Cover (%) . | . . Naked Turns . | . . Heaviest Build 20 | 15 20 Greatest Support 20 | 20 20 Greatest Overweight (x) 4 | 4 1 Average Overweight (x) . | . . Largest Inventory Capacity 10 | 8 10 Average Capacity 9 | 7 9 Most Carried 7 | 2 7 Average Carried 3 | . 3 Final Capacity 10 | 8 10 Final Carried 6 | 1 6 Class Distribution -------------------- 100% | Mutant Dominant Class ---------------- Mutant | -10/Materials Resources | -11 -10 ----------- Run | Yrd Mat Matter Collected 320 | 265 55 Remotely . | . . Salvage Created 560 | 89 471 Parts 27 | 6 21 Haulers Intercepted . | . . Recyclers Shooed 1 | . 1 Parts Field Recycled . | . . Retrieved Matter . | . . Parts Self-Destructed . | . . Prevented . | . . Parts Restored . | . . Kills | -11 -10 ------- Run | Yrd Mat Combat Hostiles Destroyed 8 | . 8 Guns 5 | . 5 AOE 3 | . 3 Classes Destroyed 4 | 2 2 Tunneler 1 | 1 . Recycler 2 | 1 1 Watcher 1 | . 1 Grunt 8 | . 8 Best Kill Streak 5 | 2 5 Combat Bots Only 4 | . 4 Max Kills in Single Turn 3 | 1 3 Gunslinging . | . . Exploded 2 | . 2 Melee . | . . Uniques/NPCs Destroyed . | . . Combat | -11 -10 -------- Run | Yrd Mat Hostile Shots Fired 116 | . 116 Missed 31 | . 31 Hits 85 | . 85 Projectile 85 | . 85 Critical Strikes 1 | . 1 Damage Taken 903 | . 903 Core 254 | . 254 Absorbed by Shields . | . . Core Remaining (%) 100 | 100 . Volleys Fired 39 | 5 34 Largest 2 | 2 2 Hottest 90 | 90 90 Shots Fired 72 | 10 62 Gun 72 | 10 62 Cannon . | . . Launcher . | . . Special . | . . Kinetic . | . . Thermal 37 | 5 32 Explosive . | . . Electromagnetic 35 | 5 30 Robot Hit Streak 9 | 7 9 Robot Miss Streak 3 | 2 3 Penetration Max . | . . Secondary Targets 2 | . 2 Max Gunslinging Chain 1 | . 1 Shots Hit Robots 48 | 7 41 Core Hits 24 | 3 21 Critical Kills . | . . Critical Parts Destroyed . | . . Critical Strikes 5 | 1 4 Burn 4 | 1 3 Corrupt 1 | . 1 Melee Attacks . | . . Impact . | . . Slashing . | . . Piercing . | . . Sneak Attacks . | . . Combat Hostiles . | . . Follow-up Attacks . | . . Damage Inflicted 853 | 88 765 Guns 645 | 88 557 Cannons . | . . Explosions 208 | . 208 Melee . | . . Ramming . | . . Kinetic . | . . Thermal 512 | 37 475 Explosive . | . . Electromagnetic 341 | 51 290 Impact . | . . Slashing . | . . Piercing . | . . Highest Corruption . | . . Average Corruption . | . . Corruption Purged . | . . Corruption Blocked . | . . Overload Shots . | . . Overflow Damage 20 | . 20 Projectiles . | . . Explosions 20 | . 20 Melee . | . . Knockbacks . | . . Impact . | . . Kinetic . | . . Secondary . | . . Self-Inflicted Damage 71 | . 71 Shots 2 | . 2 Rammed . | . . Targets Rammed . | . . Kicked . | . . Crushed . | . . Highest Temperature 361 | 150 361 Average Temperature 145 | 75 156 Received Heat Transfer 282 | . 282 Effects 3 | . 3 Energy Bleed 1 | . 1 Interference 2 | . 2 Siege Activations . | . . Martial Activations . | . . Shielding Activations . | . . Robots Disrupted . | . . Combat Hostiles . | . . Robots Corrupted . | . . Combat Hostiles . | . . Parts Fried . | . . Impact Corruptions . | . . Robots Melted . | . . Combat Hostiles . | . . Parts Melted 4 | 1 3 Heat Transferred 1399 | 185 1214 Parts Sabotaged . | . . Parts Stolen . | . . Parts Stripped . | . . Power Chain Reactions 2 | . 2 Alert | -11 -10 ------- Run | Yrd Mat Maximum Alert Level . | . . Low Security (%) 100 | 100 100 Level 1 . | . . Level 2 . | . . Level 3 . | . . Level 4 . | . . Level 5 . | . . High Security . | . . Max Security . | . . Peak Influence 120 | 5 120 Initial . | . . Average 23 | 1 31 Influence Increases 295 | 10 285 Destroy 0b10 Robot/C 160 | . 160 Destroy 0b10 Robot/NC 20 | 10 10 Destroy Leader 42 | . 42 Disable Machine 15 | . 15 Destroy Structure 13 | . 13 Lose Combat Pursuer 45 | . 45 Influence Decreases 235 | 10 225 Time Decay 155 | 10 145 Lost Part 80 | . 80 Squads Dispatched 2 | . 2 Investigation 2 | . 2 Extermination . | . . Reinforcement . | . . Assault . | . . Garrison . | . . Intercept . | . . Searches Triggered . | . . Construction Impeded . | . . Haulers Reinforced . | . . Active Scanning Responses . | . . Cargo Convoy Interrupts . | . . Stealth | -11 -10 --------- Run | Yrd Mat Distress Signals . | . . Communications Jammed . | . . Distress Signals . | . . Times Spotted 20 | . 20 Peak Tracking Total 7 | . 7 Tactical Retreats 1 | . 1 Traps | -11 -10 ------- Run | Yrd Mat Traps Triggered 1 | . 1 Indirectly . | . . Trap Hack Attempts . | . . Triggered . | . . Disarmed . | . . Reprogrammed . | . . Reused . | . . Traps Extracted . | . . Installed . | . . Triggered . | . . Machines | -11 -10 ---------- Run | Yrd Mat Machines Disabled 1 | . 1 Max in Single Turn 1 | . 1 Machines Repaired . | . . Machines Dismantled . | . . Machines Sabotaged . | . . Overloaded Fab Kills . | . . Hacking | -11 -10 --------- Run | Yrd Mat Machines Accessed 1 | . 1 Terminals 1 | . 1 Fabricators . | . . Repair Stations . | . . Recycling Units . | . . Scanalyzers . | . . Garrison Access . | . . Total Hacks 3 | . 3 Successful 1 | . 1 Failed 2 | . 2 Catastrophic . | . . Database Lockouts . | . . Manual 3 | . 3 Terminals 3 | . 3 Fabricators . | . . Repair Stations . | . . Recycling Units . | . . Scanalyzers . | . . Garrison Access . | . . Terminal Hacks 1 | . 1 Branch Access Points 1 | . 1 Fabricator Hacks . | . . Repair Station Hacks . | . . Recycling Unit Hacks . | . . Scanalyzer . | . . Garrison Access Hacks . | . . Unauthorized Hacks . | . . Terminals . | . . Fabricators . | . . Repair Stations . | . . Recycling Units . | . . Scanalyzers . | . . Garrison Access . | . . Data Cores Recovered . | . . Used . | . . Hacking Detections 1 | . 1 Full Trace Events 1 | . 1 Feedback Events . | . . Feedback Blocked . | . . Robot Schematics Acquired . | . . Robots Built . | . . Authchips . | . . Time . | . . Total Robot Build Rating . | . . Part Schematics Acquired . | . . Parts Built . | . . Authchips . | . . Time . | . . Total Part Build Rating . | . . Part Studies Acquired . | . . Parts Repaired . | . . Time . | . . Parts Recycled . | . . Recycled Matter . | . . Retrieved Matter . | . . Retrieved Components . | . . Parts Scanalyzed . | . . Part Schematics Acquired . | . . Parts Damaged . | . . Bothacking | -11 -10 ------------ Run | Yrd Mat Used RIF Installer . | . . Robots Hacked . | . . Non-combat . | . . Combat . | . . Robot Hacks Applied . | . . Relay Couplers Released . | . . Fabnet Peak Effective % . | . . Robots Rewired . | . . Allies Hacked . | . . Hacks Repelled . | . . Allies | -11 -10 -------- Run | Yrd Mat Total Allies . | . . Largest Group . | . . Highest-Rated Group . | . . Highest-Rated Ally . | . . Total Orders . | . . Ally Attacks . | . . Total Damage . | . . Kills . | . . Allies Corrupted . | . . Allies Melted . | . . Intel | -11 -10 ------- Run | Yrd Mat Active Infowar (turns) 397 | 45 352 Sensors 158 | . 158 Seismic 239 | 45 194 Robot Analysis Total . | . . Derelict Logs Recovered . | . . Drone Launches . | . . Drone Recoveries . | . . Exploration | -11 -10 ------------- Run | Yrd Mat Turns Passed 497 | 118 379 Spaces Moved 283 | 68 215 Core 13 | 13 . Treads . | . . Legs 270 | 55 215 Wheels . | . . Hover . | . . Flight . | . . Fastest Speed 50 | 50 120 Average Speed 123 | 133 120 Slowest Speed 250 | 250 190 Overloaded Moves . | . . Propulsion Burnouts . | . . Robots Hopped . | . . Potential Cave-ins . | . . Cave-ins Triggered . | . . Exploration Rate (%) 25 | 5 46 Regions Visited 1 Branch Regions . Pre-discovered Areas . | . . Known Exits Taken . | . . Unknown Exits Taken 1 | 1 . Scrap Searched . | . . Spaces Dug . | . . Terrain Destroyed 12 | . 12 Melee . | . . Projectile . | . . AOE 12 | . 12 Terrain Rammed . | . . Walls Destroyed . | . . Machines Disabled . | . . Actions | -11 -10 --------- Run | Yrd Mat Total 352 | 82 270 Wait 10 | 1 9 Move 282 | 67 215 Hop . | . . Pick Up 4 | 2 2 Fast Attach 9 | 6 3 Attach 2 | 1 1 Detach 1 | . 1 Swap 4 | . 4 Drop 1 | . 1 Fire 39 | 5 34 Melee . | . . Ram . | . . Kick . | . . Crush . | . . Escape Stasis . | . . Rewire . | . . Trap . | . . Miscellaneous . | . . Route ------- -11/Scrapyard -10/Materials (discovered 2 exits: [*Mat] / Min) History --------- Turn | Location | Event 33 | -11/Scrapyard | Discovered new exit (range 15) 119 | -11/Scrapyard | Entered Materials 298 | -10/Materials | Discovered new exit (range 10) 307 | -10/Materials | Build established: Mutant 324 | -10/Materials | Identified exit to Mines 491 | -10/Materials | Core integrity fell below 50% 497 | -10/Materials | Core integrity fell below 20% 498 | -10/Materials | Destroyed by S-10 Pest with Light Assault Rifle Last Messages --------------- 00484_ Aluminum Leg destroyed. 00484_ U-05 Engineer builds a Wall. 00484_ U-05 Engineer lays Concrete. 00484_ Acquired 10 matter. 00485_ R-06 Scavenger collects Corrupted Particle Gun. 00486_ Sensor Array destroyed. 00486_ U-05 Engineer lays Concrete. 00487_ U-05 Engineer builds a Wall. 00487_ U-05 Engineer lays Concrete. 00488_ T-07 Excavator is excavating. 00488_ U-05 Engineer lays Concrete. 00489_ U-05 Engineer builds a Wall. 00490_ U-05 Engineer lays Concrete. 00492_ T-07 Excavator is excavating. 00492_ U-05 Engineer builds a Wall. 00496_ U-05 Engineer lays Concrete. 00496_ T-07 Excavator is excavating. 00496_ Aluminum Leg destroyed. 00497_ U-05 Engineer builds a Wall. 00497_ U-05 Engineer lays Concrete. Map ----- +----------------------------------------------------+ | ??????????????????????????????????????? | | ??????????????????????????????????????? | | ?????????????>????????????????????????? | | ??????????????????????????????????????? | | ??????????????????????????????????????? | | ??????????????????????????????????????? | | ??????????????????????????????????????? | | ??????????????????????????????????????? | | ??????????????????????????????????????? | | ???????????? ??????????????????????? | | ???????????? ????????????????????? | | ???????????# ??????????????????? | | ???????????# #?????????????????? | | ???????????+ #?????????????????? | | ???????????# #?????????????????? | | ???????????# ######????????????? | | ???????????# ???????????? | | ???????????# s???????????? | | ???????????# ]] ? ????? | | ???????????# s s]] #???? | | ???????????# s ]] #???? | | ????######## !s# ##### | | ????# #=s*# | | ????# tu # ==; "" | | ?????# u = !; """" | | ??????#### #%=@# """" | | ?????????##### #^ | | ???????????##; # # | | ????????????##g# # | | ?????????????# # # | | ?#############+# # | | ?# ! = # # | | ?# # !!! | | ?# """ """ """ + !!! % | | ?# """ """ """ # !!! | | ?# """ """ """ ### | | ?# #?# | | ?#######+#########+## | | ???????# # ## | | ???????# # """ ## ######## | | ???????# # Y" ## #??????# | | ######## # """ ## #??????## ### | | # # # """ ## #???????# ### | | #| """ # # """ ## #???????# # | | # """ + # """ ## #???????# # | | # """ # # ## ########## # | | # # #####+###### #?# # # | | # """ # #?# + +% | | # """ + ###### #?# # # | | # """ # % #????# ??# # # | +----------------------------------------------------+ Best States ------------- Heat Dissipation 25 Energy Generation 10 Energy Capacity 250 Matter Stores 300 Matter Capacity 300 Sight Range 16 Robot Scan Range 14 Terrain Scan Density 10 Evasion (%) 55 Item Schematics ----------------- None Robot Schematics ------------------ None Fabricated ------------ Nothing Repaired ---------- Nothing Studied --------- None Alien Tech Used ----------------- None Achievements -------------- None Challenges ------------ None Game ------ Seed CatalystTechStick Manual? 0 Play Time 00:06:33 Cumulative 51.0 hours Start 2026.01.05 @ 01:19:59 End 2026.01.05 @ 01:25:57 Sessions 1 Manual Loads 0 Difficulty Rogue Special Mode None Game No. 222 Rogue 222 Adventurer 0 Explorer 0 Win Type - Total 0 Types 0/0/0/0/0/0/0/0/0/0 Lore% 27 Gallery% 21 Achievement% 16 Wizard Run 0 Options --------- Layout 0 ASCII 1 Keyboard 1 Movement Numpad Keybinds 1 Fullscreen 1 Font 18/X11 Map View 76x50 Zoom Use 0% Tactical HUD 1 Map Filters NONE Filters NONE Steam 1 RUN: b7b0d654-d2d7-4009-93ad-4916c30edf57